Workbook

Sheet ORTIA
A1: Taxiways and Runways
A2: id | B2: Name | C2: Length_KM | D2: Width_M
A3: 1 | B3: 03R/21L | C3: 3.522047 | F3: Widths for Runways= 75m
A4: 2 | B4: 21L Holding Point | C4: 0.174026 | F4: Widths for Taxiways= 60m
A5: 3 | B5: SIERAA RET | C5: 0.464465
A6: 4 | B6: 03R/21L RET | C6: 0.233062
A7: 5 | B7: TANGO | C7: 0.201131
A8: 6 | B8: ROMEO RET | C8: 0.409829
A9: 6 | B9: YANKEE HOLDING POINT | C9: 0.106231
A10: 7 | B10: YANKEE 01 | C10: 0.621656
A11: 8 | B11: YANKEE03 | C11: 0.400385
A12: 9 | B12: YANKEE04 | C12: 1.031597
A13: 10 | B13: YANKEE05 | C13: 0.211142
A14: 11 | B14: YANKEE06 | C14: 0.706532
A15: 12 | B15: YANKEE07 | C15: 0.442689
A16: 13 | B16: HOTEL01 | C16: 1.283795
A17: 14 | B17: HOTEL02 | C17: 0.475243
A18: 15 | B18: HOTEL03 | C18: 0.198679
A19: 16 | B19: HOTEL04 | C19: 0.197734
A20: 17 | B20: HOTEL05 | C20: 0.080173
A21: 18 | B21: ECHO01 | C21: 0.554716
A22: 19 | B22: ECHO02 | C22: 0.341701
A23: 20 | B23: ECHO03 | C23: 0.254164
A24: 21 | B24: ECHO04 | C24: 0.551371
A25: 22 | B25: ECHO05 | C25: 0.230094
A26: 23 | B26: ECHO06 | C26: 0.216011
A27: 24 | B27: LIMA01 | C27: 0.86361
A28: 25 | B28: LIMA02 | C28: 0.357779
A29: 26 | B29: LIMA03 | C29: 0.393551
A30: 27 | B30: LIMA04 | C30: 0.200325
A31: 28 | B31: LIMA05 | C31: 0.195079
A32: 29 | B32: LIMA06 | C32: 0.164993
A33: 30 | B33: KILO01 | C33: 0.355898
A34: 31 | B34: CHARLIE HOLDING POINT | C34: 0.213095
A35: 32 | B35: CHARLIE01 | C35: 0.459193
A36: 33 | B36: CHARLIE02 | C36: 0.100183
A37: 34 | B37: CHARLIE02 | C37: 0.585786
A38: 35 | B38: CHARLIE04 | C38: 0.861475
A39: 36 | B39: CHARLIE06 | C39: 0.826542
A40: 37 | B40: CHARLIE07 | C40: 1.176607
A41: 38 | B41: CHARLIE HOLDING POINT 21R | C41: 0.174947
A42: 39 | B42: INDIA01 | C42: 0.199322
A43: 40 | B43: INDIA02 | C43: 0.195947
A44: 41 | B44: INDIA03 | C44: 0.155358
A45: 42 | B45: JULIET | C45: 0.187253
A46: 43 | B46: BRAVO01 | C46: 0.228347
A47: 44 | B47: BRAVO02 | C47: 0.280351
A48: 45 | B48: BRAVO3 | C48: 0.463604
A49: 46 | B49: BRAVO04 | C49: 0.096858
A50: 47 | B50: BRAVO05 | C50: 0.086323
A51: 48 | B51: PAPPA | C51: 1.137349
A52: 49 | B52: ALPHA01 | C52: 0.696993
A53: 49 | B53: ALPHA02 | C53: 0.09993
A54: 50 | B54: ALPHA03 | C54: 0.410941
A55: 51 | B55: ALPHA04 | C55: 0.352346
A56: 52 | B56: ALPHA05 | C56: 0.682016
A57: 53 | B57: ALPHA06 | C57: 0.423821
A58: 54 | B58: ALPHA07 | C58: 0.242706
A59: 55 | B59: ALPHA08 | C59: 0.158374
A60: 56 | B60: ALPHA09 | C60: 0.091066
A61: 57 | B61: ALPHA010 | C61: 0.297666
A62: 58 | B62: ALPHA11 | C62: 0.464899
A63: 59 | B63: ALPHA12 | C63: 0.165526
A64: 60 | B64: ALPHA13 | C64: 0.361318
A65: 61 | B65: QUEBEC | C65: 0.230971
A66: 63 | B66: RUNWAY 09/27 01 | C66: 0.340702
A67: 64 | B67: RUNWAY 09/27 02 | C67: 0.804958
A68: 65 | B68: 03L/21R | C68: 4.419126
A69: 66 | B69: HOTEL01 RET | C69: 0.160623
A70: 67 | B70: MIKE TAXILANE | C70: 0.55298
A71: 68 | B71: CHARLIE TAXILANE 01 | C71: 0.679346
A72: 69 | B72: CHARLIE TAXILANE 02 | C72: 0.686022
A73: 70 | B73: BRAVO TAXILANE | C73: 0.60148
A74: 71 | B74: ALPHA TAXILANE | C74: 0.307405
A75: 73 | B75: ECHO TAXILANE | C75: 0.496019
A76: 74 | B76: GOLF01 | C76: 0.080545
A77: 75 | B77: GOLF02 | C77: 0.08015
A78: 76 | B78: GOLF02 | C78: 0.080857
A79: 77 | B79: GOLF04 | C79: 0.079637
A80: 78 | B80: GOLF TAXIWAY 01 | C80: 0.303546
A81: 79 | B81: GOLF TAXIWAY 02 | C81: 0.244352
A82: 80 | B82: GOLF TAXIWAY 03 | C82: 0.242817
A83: 81 | B83: GOLF TAXIWAY 04 | C83: 0.423985
A84: 82 | B84: GOLF TAXIWAY 05 | C84: 0.354204
A85: 83 | B85: FOXTROT
A86: 84 | B86: WHISKEY
A87: 85 | B87: Echo-DENEL
A88: 86 | B88: DENEL01
A89: 87 | B89: DENEL02
A90: 88 | B90: November
A91: 89 | B91: November
A92: Total | C92: =SUM(C3:C91) -> 38.485575
A94: Aprons
A96: id | B96: Name | C96: Area in m2
A97: 1 | B97: CHARLIE01 | C97: 15116.44627
A98: 3 | B98: CHARLIE03 | C98: 12057.08527
A99: 4 | B99: ALPHA/BRAVO | C99: 154534.136
A100: 5 | B100: ALPHA | C100: 26984.03183
A101: 6 | B101: ECHO | C101: 41155.83708
A102: 7 | B102: FOXTROT | C102: 27575.10703
A103: 8 | B103: DELTA | C103: 152524.4811
A104: 9 | B104: GOLF | C104: 18355.99793
A105: 10 | B105: MIKE | C105: 22692.66615
A106: 11 | B106: CHARLIE02 | C106: 30143.03977
A107: 12 | B107: DENEL01 | C107: 13570.45862
A108: 13 | B108: DENEL01 | C108: 18494.30564
A109: 14 | B109: DENEL03 | C109: 24509.28876
A110: 15 | B110: DENEL04 | C110: 19663.5385
A111: 16 | B111: DENEL05 | C111: 19686.71825
A112: 17 | B112: DENEL06 | C112: 14381.60803
A113: 18 | B113: SAA01 | C113: 3548.305794
A114: 19 | B114: SAA02 | C114: 52990.718
A115: 20 | B115: SAA03 | C115: 54506.61115
A116: 21 | B116: SAA04 | C116: 26163.1762
A117: 22 | B117: SAA | C117: 28905.83227
A118: 23 | B118: SAA | C118: 44398.16653
A119: 24 | B119: SAA | C119: 19966.17373
A120: 25 | B120: SAA | C120: 21814.78788
A121: 25 | B121: SAA | C121: 4840.806009
A122: 26 | B122: SAFAIR | C122: 42477.19437
A123: 27 | B123: SAFAIR | C123: 30116.20229
A124: 28 | B124: SAFAIR | C124: 19510.17188
A125: 29 | B125: SAFAIR | C125: 2153.013784
A126: 30 | B126: SAFAIR | C126: 5001.801721
A127: 31 | B127: SAFAIR | C127: 3535.196522
A128: 32 | B128: CEMAIR | C128: 5770.211985
A129: 33 | B129: AIRLINK | C129: 7721.709876
A130: Total | C130: =SUM(C97:C129) -> 984864.8262

Sheet BFIA
A1: Item | B1: Item/ Service Description | C1: Measurements
A2: 1 | B2: Runway 02/20 | C2: L=2600m w=60m
C3: A=156 000m²
A4: 2 | B4: Runway 12/30 | C4: L=2190 W=43m
C5: A=94 170m²
A6: 3 | B6: Taxi way Bravo | C6: L=2340m w=24.5m
C7: A=57 330m²
A8: 4 | B8: Taxiway Charlie | C8: L=2700m w=23m
C9: A=62 100m²
A10: 5 | B10: Taxiway Alpha | C10: L=2300m W=23
C11: A=52 900m²
A12: 6 | B12: Apron | C12: Perimeter Length=615m
C13: A=21 044m²
A14: 7 | B14: Small Apron | C14: Perimeter Length=325m
C15: A=6 549m²

Sheet KSIA
A1: Item | B1: Item/ Service Description | C1: Measurements
A2: 1 | B2: Runway | C2: L=3700m w=75m
C3: A=277 500m²
A4: 2 | B4: Taxiway Alpha | C4: L=3700 W=60m
C5: A=222 000m²
A6: 3 | B6: Taxiway Bravo | C6: L=640m w=60m
C7: A=38 400m²
A8: 4 | B8: Taxiway Charlie | C8: L=345m w=60m
C9: A=20 700m²
A10: 5 | B10: Taxiway Echo | C10: L=155m W=60
C11: A=9300m²
A12: 6 | B12: Taxiway F | C12: Length=550m w=60
C13: A=33 000m²
A14: 7 | B14: Taxiway G | C14: Length=380m w=60
C15: A=22 800m²
A16: 8 | B16: Taxiway H | C16: Length=380m w=60
C17: A=22 800m²
A18: 9 | B18: Taxiway M | C18: Length=190m w=60
C19: A=11 400m²
A20: 10 | B20: Taxiway N | C20: Length=390m w=60
C21: A=23 400m²
A22: 11 | B22: Taxiway P | C22: Length=159m w=10
C23: A=1590m²

Sheet ELS
A1: Description | B1: Length | C1: Width | D1: Area
A2: Runway 11/29 | B2: 1939 | C2: 45 | D2: =B2*C2 -> 87,255.00
A3: Runway 06/24 | B3: 1585 | C3: 45 | D3: =B3*C3 -> 71,325.00
A4: Apron A | B4: =183+179 -> 362 | C4: =79+(79-40.7) -> 117.3 | D4: =B4*C4 -> 42,462.60
A5: Apron B | D5: 0
A6: Taxiway | D6: 0
A7: Alpha 1 | B7: 82 | C7: 45 | D7: 3,690.00
A8: Alpha 2 | B8: 104 | C8: 45 | D8: 4,680.00
A9: Alpha 3 | B9: 98 | C9: 45 | D9: 4,410.00
A10: Alpha 4 | B10: 84 | C10: 45 | D10: 3,780.00
A11: Alpha | B11: 1922 | C11: 45 | D11: =B11*C11 -> 86,490.00
A12: Bravo | B12: 82 | C12: 45 | D12: 3,690.00
A13: Threshold 06 | B13: 26 | C13: 45 | D13: 1,170.00
A14: Charlie 3 | B14: 31 | C14: 45 | D14: 1,395.00
A15: Bravo Txwy | B15: 711 | C15: 45 | D15: 31,995.00

Sheet CDSIA
A1: Description | B1: Length | C1: Width | D1: Area
A2: Runway 08/26 | B2: 2220 | C2: 46 | D2: =B2*C2 -> 102,120.00
A3: Runway 17/35 | B3: 1737 | C3: 45 | D3: =B3*C3 -> 78,165.00
A4: TWY Alpha | B4: 2156 | C4: 22.5 | D4: =B4*C4 -> 48,510.00
A5: Alpha 1 | B5: 190 | C5: 22.5 | D5: 4,275.00
A6: Alpha 2 | B6: 194 | C6: 22.5 | D6: 4,365.00
A7: Alpha 3 | B7: 185 | C7: 7.5 | D7: 1,387.50
A8: Alpha 4 | B8: 175 | C8: 22.5 | D8: 3,937.50
A9: Echo | B9: 120 | C9: 22.5 | D9: 2,700.00
A10: Charlie | B10: 30 | C10: 15 | D10: 450.00
A11: Bravo | B11: 50 | C11: 22.5 | D11: =B11*C11 -> 1,125.00
A13: For Apron: 13 Parking bays
A14: W = 55m
A15: L = 550m
A16: A = 30 250 m2

Sheet CTIA

Sheet George Airport

Sheet UPN
A1: Description | B1: Length | C1: Width | D1: Area
A2: Runway 17/35 | B2: 4900 | C2: 60 | D2: =B2*C2 -> 294,000.00
A3: Runway 01/19 | B3: 2438 | C3: 46 | D3: =B3*C3 -> 112,148.00
A4: Runway 08/26 | B4: 834 | C4: 30 | D4: =B4*C4 -> 25,020.00

Sheet KBY
A1: Description | B1: Length | C1: Width | D1: Area
A2: Runway 02/20 | B2: 3002 | C2: 45 | D2: =B2*C2 -> 135,090.00
A3: Runway 17/35 | B3: 2437 | C3: 45 | D3: =B3*C3 -> 109,665.00
A4: TWY Alpha | B4: 814 | C4: 22.7 | D4: =B4*C4 -> 18,477.80
A5: TWY Bravo | B5: 138 | C5: 15 | D5: 2,070.00
A6: TWY Charlie | B6: 743 | C6: 22.7 | D6: 16,866.10
A7: Apron
